[Event "Titled Tuesday Blitz March 01 Early 2022"]
[White "Agasarov, Benik"]
[Black "Kukula, Pawel"]
[WhiteFideId "13314823"]
[BlackFideId "1115081"]
[WhiteElo "2566"]
[BlackElo "2203"]
[Result "0-1"]
[Round "07"]
[TimeControl "180+1"]
[Date "2022.03.01"]
[WhiteClock "0:00:16"]
[BlackClock "0:00:27"]

1. d4 {[%clk 0:02:19]}  Nf6 {[%clk 0:02:54]} 2. c4 {[%clk 0:02:20]}  Nc6 {[%clk 0:02:53]} 3. Nf3 {[%clk 0:02:18]}  e6 {[%clk 0:02:53]} 4. a3 {[%clk 0:02:15]}  g6 {[%clk 0:02:53]} 5. Nc3 {[%clk 0:02:14]}  Bg7 {[%clk 0:02:53]} 6. e4 {[%clk 0:02:12]}  d6 {[%clk 0:02:54]} 7. Be2 {[%clk 0:02:11]}  O-O {[%clk 0:02:53]} 8. O-O {[%clk 0:02:11]}  e5 {[%clk 0:02:54]} 9. d5 {[%clk 0:02:04]}  Nb8 {[%clk 0:02:48]} 10. h3 {[%clk 0:02:01]}  a5 {[%clk 0:02:48]} 11. Be3 {[%clk 0:01:58]}  b6 {[%clk 0:02:47]} 12. b4 {[%clk 0:01:58]}  Nh5 {[%clk 0:02:45]} 13. c5 {[%clk 0:01:56]}  bxc5 {[%clk 0:02:42]} 14. bxc5 {[%clk 0:01:55]}  f5 {[%clk 0:02:42]} 15. Ng5 {[%clk 0:01:50]}  Nf4 {[%clk 0:02:42]} 16. Nf3 {[%clk 0:01:45]}  fxe4 {[%clk 0:02:39]} 17. Nxe4 {[%clk 0:01:44]}  Bf5 {[%clk 0:02:36]} 18. Ng3 {[%clk 0:01:27]}  Nd7 {[%clk 0:02:31]} 19. Nxf5 {[%clk 0:01:25]}  gxf5 {[%clk 0:02:31]} 20. cxd6 {[%clk 0:01:25]}  cxd6 {[%clk 0:02:31]} 21. Rc1 {[%clk 0:01:22]}  Nxe2+ {[%clk 0:02:16]} 22. Qxe2 {[%clk 0:01:21]}  f4 {[%clk 0:02:16]} 23. Bd2 {[%clk 0:01:20]}  Nc5 {[%clk 0:02:13]} 24. Bc3 {[%clk 0:01:04]}  e4 {[%clk 0:02:08]} 25. Nd2 {[%clk 0:00:44]}  f3 {[%clk 0:01:59]} 26. Qe3 {[%clk 0:00:41]}  fxg2 {[%clk 0:01:56]} 27. Kxg2 {[%clk 0:00:37]}  Ra7 {[%clk 0:01:49]} 28. Nxe4 {[%clk 0:00:34]}  Nxe4 {[%clk 0:01:43]} 29. Qxe4 {[%clk 0:00:31]}  Qg5+ {[%clk 0:01:39]} 30. Kh1 {[%clk 0:00:26]}  Re7 {[%clk 0:01:29]} 31. Qg2 {[%clk 0:00:22]}  Qxg2+ {[%clk 0:00:55]} 32. Kxg2 {[%clk 0:00:23]}  Rf5 {[%clk 0:00:55]} 33. Bxg7 {[%clk 0:00:20]}  Rxg7+ {[%clk 0:00:55]} 34. Kh2 {[%clk 0:00:20]}  Rxd5 {[%clk 0:00:56]} 35. Rc8+ {[%clk 0:00:19]}  Kf7 {[%clk 0:00:56]} 36. Rfc1 {[%clk 0:00:19]}  Kf6 {[%clk 0:00:51]} 37. Rf8+ {[%clk 0:00:18]}  Ke5 {[%clk 0:00:51]} 38. Re1+ {[%clk 0:00:16]}  Kd4 {[%clk 0:00:51]} 39. Rf4+ {[%clk 0:00:15]}  Kc5 {[%clk 0:00:51]} 40. Rc1+ {[%clk 0:00:15]}  Kb5 {[%clk 0:00:52]} 41. a4+ {[%clk 0:00:16]}  Kb6 {[%clk 0:00:52]} 42. Rb1+ {[%clk 0:00:15]}  Kc6 {[%clk 0:00:51]} 43. Rf8 {[%clk 0:00:14]}  Rd2 {[%clk 0:00:49]} 44. Rc1+ {[%clk 0:00:11]}  Kd5 {[%clk 0:00:49]} 45. Rf5+ {[%clk 0:00:12]}  Ke6 {[%clk 0:00:49]} 46. Rf3 {[%clk 0:00:10]}  d5 {[%clk 0:00:48]} 47. Re1+ {[%clk 0:00:11]}  Kd6 {[%clk 0:00:48]} 48. Rf6+ {[%clk 0:00:11]}  Kc5 {[%clk 0:00:48]} 49. Rc1+ {[%clk 0:00:11]}  Kd4 {[%clk 0:00:49]} 50. Re1 {[%clk 0:00:11]}  Rg6 {[%clk 0:00:48]} 51. Rf4+ {[%clk 0:00:09]}  Kc5 {[%clk 0:00:48]} 52. Rc1+ {[%clk 0:00:09]}  Kd6 {[%clk 0:00:47]} 53. h4 {[%clk 0:00:08]}  h5 {[%clk 0:00:45]} 54. Rf5 {[%clk 0:00:08]}  Rg4 {[%clk 0:00:45]} 55. Kh3 {[%clk 0:00:07]}  Rxa4 {[%clk 0:00:42]} 56. f3 {[%clk 0:00:07]}  Raa2 {[%clk 0:00:41]} 57. Rxh5 {[%clk 0:00:06]}  Rg2 {[%clk 0:00:40]} 58. Rg5 {[%clk 0:00:06]}  Rh2+ {[%clk 0:00:40]} 59. Kg3 {[%clk 0:00:07]}  Rag2+ {[%clk 0:00:37]} 60. Kf4 {[%clk 0:00:07]}  Rxh4+ {[%clk 0:00:37]} 61. Rg4 {[%clk 0:00:06]}  Rhh2 {[%clk 0:00:32]} 62. Ra1 {[%clk 0:00:05]}  Ra2 {[%clk 0:00:31]} 63. Rg6+ {[%clk 0:00:05]}  Kc5 {[%clk 0:00:31]} 64. Rc1+ {[%clk 0:00:06]}  Kb5 {[%clk 0:00:30]} 65. Rd6 {[%clk 0:00:06]}  Rhd2 {[%clk 0:00:29]} 66. Ke5 {[%clk 0:00:06]}  Ra3 {[%clk 0:00:28]} 67. Rxd5+ {[%clk 0:00:06]}  Rxd5+ {[%clk 0:00:28]} 68. Kxd5 {[%clk 0:00:07]}  Rxf3 {[%clk 0:00:28]} 69. Rb1+ {[%clk 0:00:08]}  Ka4 {[%clk 0:00:27]} 70. Kc4 {[%clk 0:00:08]}  Rf4+ {[%clk 0:00:26]} 71. Kc3 {[%clk 0:00:09]}  Rf8 {[%clk 0:00:24]} 72. Kc4 {[%clk 0:00:07]}  Rc8+ {[%clk 0:00:24]} 73. Kd3 {[%clk 0:00:06]}  Rc7 {[%clk 0:00:22]} 74. Ra1+ {[%clk 0:00:07]}  Kb4 {[%clk 0:00:23]} 75. Rb1+ {[%clk 0:00:07]}  Ka3 {[%clk 0:00:20]} 76. Ra1+ {[%clk 0:00:07]}  Kb4 {[%clk 0:00:21]} 77. Rb1+ {[%clk 0:00:08]}  Ka4 {[%clk 0:00:22]} 78. Ra1+ {[%clk 0:00:08]}  Kb5 {[%clk 0:00:23]} 79. Rb1+ {[%clk 0:00:09]}  Ka6 {[%clk 0:00:23]} 80. Ra1 {[%clk 0:00:09]}  Rc8 {[%clk 0:00:22]} 81. Kd2 {[%clk 0:00:09]}  Rc4 {[%clk 0:00:21]} 82. Kd3 {[%clk 0:00:09]}  Rb4 {[%clk 0:00:21]} 83. Kc3 {[%clk 0:00:10]}  Kb5 {[%clk 0:00:21]} 84. Rh1 {[%clk 0:00:09]}  Rg4 {[%clk 0:00:21]} 85. Kb3 {[%clk 0:00:08]}  Rg2 {[%clk 0:00:20]} 86. Rh5+ {[%clk 0:00:07]}  Kb6 {[%clk 0:00:20]} 87. Rh6+ {[%clk 0:00:08]}  Kb5 {[%clk 0:00:21]} 88. Rh5+ {[%clk 0:00:08]}  Kb6 {[%clk 0:00:21]} 89. Rh6+ {[%clk 0:00:08]}  Kc7 {[%clk 0:00:22]} 90. Rh7+ {[%clk 0:00:09]}  Kc6 {[%clk 0:00:22]} 91. Rh6+ {[%clk 0:00:10]}  Kd7 {[%clk 0:00:22]} 92. Rh5 {[%clk 0:00:10]}  a4+ {[%clk 0:00:21]} 93. Kxa4 {[%clk 0:00:10]}  Rd2 {[%clk 0:00:21]} 94. Kb5 {[%clk 0:00:11]}  Rd6 {[%clk 0:00:21]} 95. Kc5 {[%clk 0:00:11]}  Re6 {[%clk 0:00:21]} 96. Rh7+ {[%clk 0:00:10]}  Re7 {[%clk 0:00:21]} 97. Rh8 {[%clk 0:00:11]}  Re8 {[%clk 0:00:20]} 98. Rh6 {[%clk 0:00:10]}  Re6 {[%clk 0:00:20]} 99. Rh1 {[%clk 0:00:11]}  Re5+ {[%clk 0:00:20]} 100. Kd4 {[%clk 0:00:11]}  Re6 {[%clk 0:00:21]} 101. Kd5 {[%clk 0:00:11]}  Rd6+ {[%clk 0:00:21]} 102. Ke5 {[%clk 0:00:12]}  Re6+ {[%clk 0:00:21]} 103. Kf5 {[%clk 0:00:12]}  Re7 {[%clk 0:00:21]} 104. Rd1+ {[%clk 0:00:12]}  Kc6 {[%clk 0:00:22]} 105. Kf6 {[%clk 0:00:13]}  Rd7 {[%clk 0:00:22]} 106. Rc1+ {[%clk 0:00:12]}  Kd5 {[%clk 0:00:22]} 107. Ra1 {[%clk 0:00:10]}  Rd6+ {[%clk 0:00:22]} 108. Kf5 {[%clk 0:00:10]}  Rc6 {[%clk 0:00:22]} 109. Rd1+ {[%clk 0:00:09]}  Kc5 {[%clk 0:00:23]} 110. Ke5 {[%clk 0:00:10]}  Kb6 {[%clk 0:00:22]} 111. Kd4 {[%clk 0:00:10]}  Rd6+ {[%clk 0:00:22]} 112. Kc3 {[%clk 0:00:10]}  Rxd1 {[%clk 0:00:23]} 113. Kc2 {[%clk 0:00:10]}  Rd5 {[%clk 0:00:23]} 114. Kc3 {[%clk 0:00:11]}  Kc5 {[%clk 0:00:23]} 115. Kc2 {[%clk 0:00:11]}  Rd4 {[%clk 0:00:23]} 116. Kc1 {[%clk 0:00:12]}  Kd5 {[%clk 0:00:24]} 117. Kc2 {[%clk 0:00:12]}  Ke4 {[%clk 0:00:25]} 118. Kc3 {[%clk 0:00:13]}  Ke3 {[%clk 0:00:26]} 119. Kc2 {[%clk 0:00:14]}  Rd3 {[%clk 0:00:26]} 120. Kc1 {[%clk 0:00:15]}  Rd2 {[%clk 0:00:27]} 121. Kb1 {[%clk 0:00:15]}  Kd3 {[%clk 0:00:27]} 122. Ka1 {[%clk 0:00:15]}  Kc3 {[%clk 0:00:27]} 123. Kb1 {[%clk 0:00:16]}  Kb3 {[%clk 0:00:28]} 124. Kc1 {[%clk 0:00:16]}  Rd7 {[%clk 0:00:28]} 125. Kb1 {[%clk 0:00:16]}  Rd1# {[%clk 0:00:27]} 0-1


[Site "https://www.chess.com"]

[Event "Titled Tuesday Blitz March 01 Early 2022"]
[White "Arabidze, Meri"]
[Black "Devaev, Alexander"]
[WhiteFideId "13604040"]
[BlackFideId "4169395"]
[WhiteElo "2329"]
[BlackElo "2185"]
[Result "1-0"]
[Round "07"]
[TimeControl "180+1"]
[Date "2022.03.01"]
[WhiteClock "0:00:05"]
[BlackClock "0:00:03"]

1. d4 {[%clk 0:02:57]}  Nf6 {[%clk 0:02:59]} 2. Nf3 {[%clk 0:02:58]}  e6 {[%clk 0:02:58]} 3. g3 {[%clk 0:02:59]}  c5 {[%clk 0:02:56]} 4. Bg2 {[%clk 0:03:00]}  cxd4 {[%clk 0:02:56]} 5. Nxd4 {[%clk 0:03:01]}  Be7 {[%clk 0:02:56]} 6. c4 {[%clk 0:03:00]}  Nc6 {[%clk 0:02:57]} 7. O-O {[%clk 0:03:00]}  O-O {[%clk 0:02:57]} 8. Nc3 {[%clk 0:03:00]}  Ne5 {[%clk 0:02:58]} 9. b3 {[%clk 0:02:59]}  d6 {[%clk 0:02:58]} 10. Bb2 {[%clk 0:02:59]}  a6 {[%clk 0:02:59]} 11. e4 {[%clk 0:02:57]}  Qc7 {[%clk 0:02:59]} 12. h3 {[%clk 0:02:55]}  Rb8 {[%clk 0:02:59]} 13. f4 {[%clk 0:02:55]}  Ng6 {[%clk 0:02:59]} 14. Rc1 {[%clk 0:02:51]}  Re8 {[%clk 0:02:59]} 15. Kh2 {[%clk 0:02:49]}  Bf8 {[%clk 0:02:59]} 16. a4 {[%clk 0:02:46]}  b6 {[%clk 0:02:59]} 17. Qe2 {[%clk 0:02:20]}  Bb7 {[%clk 0:02:57]} 18. Rfd1 {[%clk 0:02:15]}  Ba8 {[%clk 0:02:56]} 19. Qf2 {[%clk 0:02:14]}  Nd7 {[%clk 0:02:56]} 20. h4 {[%clk 0:02:02]}  Be7 {[%clk 0:02:55]} 21. h5 {[%clk 0:02:01]}  Ngf8 {[%clk 0:02:56]} 22. h6 {[%clk 0:02:01]}  g6 {[%clk 0:02:57]} 23. Nf3 {[%clk 0:01:43]}  Nc5 {[%clk 0:02:37]} 24. b4 {[%clk 0:01:19]}  Ncd7 {[%clk 0:02:32]} 25. Qd4 {[%clk 0:01:12]}  Bf6 {[%clk 0:02:27]} 26. Qd3 {[%clk 0:01:11]}  Rbc8 {[%clk 0:02:24]} 27. Nd2 {[%clk 0:01:05]}  Qb8 {[%clk 0:02:01]} 28. Kh1 {[%clk 0:01:04]}  Bb7 {[%clk 0:01:54]} 29. g4 {[%clk 0:01:04]}  e5 {[%clk 0:01:44]} 30. g5 {[%clk 0:01:04]}  Be7 {[%clk 0:01:44]} 31. Nd5 {[%clk 0:01:02]}  Bxd5 {[%clk 0:01:43]} 32. exd5 {[%clk 0:01:00]}  exf4 {[%clk 0:01:38]} 33. Nf3 {[%clk 0:00:59]}  f6 {[%clk 0:01:13]} 34. Bh3 {[%clk 0:00:46]}  Ne5 {[%clk 0:01:12]} 35. Nxe5 {[%clk 0:00:43]}  fxe5 {[%clk 0:01:13]} 36. Bxc8 {[%clk 0:00:41]}  Rxc8 {[%clk 0:01:02]} 37. c5 {[%clk 0:00:40]}  bxc5 {[%clk 0:01:02]} 38. Qxa6 {[%clk 0:00:22]}  Rc7 {[%clk 0:00:59]} 39. Bxe5 {[%clk 0:00:16]}  Ra7 {[%clk 0:00:43]} 40. Qc6 {[%clk 0:00:11]}  dxe5 {[%clk 0:00:25]} 41. d6 {[%clk 0:00:11]}  Bxg5 {[%clk 0:00:23]} 42. d7 {[%clk 0:00:11]}  Qd8 {[%clk 0:00:12]} 43. bxc5 {[%clk 0:00:06]}  Rc7 {[%clk 0:00:12]} 44. Qd5+ {[%clk 0:00:06]}  Kh8 {[%clk 0:00:12]} 45. c6 {[%clk 0:00:07]}  Bf6 {[%clk 0:00:10]} 46. a5 {[%clk 0:00:06]}  g5 {[%clk 0:00:10]} 47. a6 {[%clk 0:00:07]}  Ng6 {[%clk 0:00:10]} 48. a7 {[%clk 0:00:07]}  Rxa7 {[%clk 0:00:08]} 49. c7 {[%clk 0:00:07]}  Rxc7 {[%clk 0:00:09]} 50. Rxc7 {[%clk 0:00:05]}  Ne7 {[%clk 0:00:06]} 51. Qb7 {[%clk 0:00:04]}  Qg8 {[%clk 0:00:02]} 52. Rc8 {[%clk 0:00:05]}  Nxc8 {[%clk 0:00:02]} 53. dxc8=Q {[%clk 0:00:05]}  Bd8 {[%clk 0:00:03]} 54. Qxd8 {[%clk 0:00:05]}  Qxd8 {[%clk 0:00:03]} 55. Rxd8# {[%clk 0:00:05]} 1-0


[Site "https://www.chess.com"]

[Event "Titled Tuesday Blitz March 01 Early 2022"]
[White "Ardila, Oscar Humberto"]
[Black "Derraugh, Geordie"]
[WhiteFideId "4404742"]
[BlackFideId "2603950"]
[WhiteElo "1898"]
[BlackElo "2116"]
[Result "0-1"]
[Round "07"]
[TimeControl "180+1"]
[Date "2022.03.01"]
[WhiteClock "0:00:02"]
[BlackClock "0:00:16"]

1. d4 {[%clk 0:02:59]}  Nf6 {[%clk 0:02:58]} 2. c4 {[%clk 0:02:58]}  e6 {[%clk 0:02:57]} 3. Bd2 {[%clk 0:02:55]}  c5 {[%clk 0:02:57]} 4. e3 {[%clk 0:02:49]}  cxd4 {[%clk 0:02:53]} 5. exd4 {[%clk 0:02:49]}  Nc6 {[%clk 0:02:53]} 6. Nf3 {[%clk 0:02:48]}  d5 {[%clk 0:02:52]} 7. c5 {[%clk 0:02:47]}  Ne4 {[%clk 0:02:50]} 8. Bb5 {[%clk 0:02:42]}  Be7 {[%clk 0:02:48]} 9. Ne5 {[%clk 0:02:38]}  Bd7 {[%clk 0:02:47]} 10. Bxc6 {[%clk 0:02:35]}  Bxc6 {[%clk 0:02:46]} 11. O-O {[%clk 0:02:34]}  O-O {[%clk 0:02:46]} 12. Nc3 {[%clk 0:02:34]}  Nxc3 {[%clk 0:02:45]} 13. bxc3 {[%clk 0:02:26]}  Bb5 {[%clk 0:02:44]} 14. Re1 {[%clk 0:02:26]}  Qc7 {[%clk 0:02:44]} 15. Bf4 {[%clk 0:02:24]}  Qa5 {[%clk 0:02:43]} 16. Qd2 {[%clk 0:02:23]}  Rac8 {[%clk 0:02:38]} 17. Rab1 {[%clk 0:02:22]}  b6 {[%clk 0:02:38]} 18. Qb2 {[%clk 0:02:17]}  Ba4 {[%clk 0:02:20]} 19. cxb6 {[%clk 0:02:08]}  axb6 {[%clk 0:02:20]} 20. Bd2 {[%clk 0:02:05]}  Rb8 {[%clk 0:01:59]} 21. c4 {[%clk 0:02:03]}  Qa8 {[%clk 0:02:00]} 22. Bb4 {[%clk 0:01:56]}  Bxb4 {[%clk 0:01:52]} 23. Qxb4 {[%clk 0:01:56]}  dxc4 {[%clk 0:01:48]} 24. Qxc4 {[%clk 0:01:49]}  Rfc8 {[%clk 0:01:45]} 25. Qb4 {[%clk 0:01:40]}  Bc2 {[%clk 0:01:36]} 26. Rb2 {[%clk 0:01:32]}  Be4 {[%clk 0:01:36]} 27. f3 {[%clk 0:01:31]}  Bd5 {[%clk 0:01:36]} 28. Qd2 {[%clk 0:01:13]}  Qa4 {[%clk 0:01:31]} 29. Reb1 {[%clk 0:01:11]}  f6 {[%clk 0:01:21]} 30. Ng4 {[%clk 0:01:00]}  Rc4 {[%clk 0:01:20]} 31. Qf4 {[%clk 0:00:47]}  Rf8 {[%clk 0:01:16]} 32. Rd2 {[%clk 0:00:40]}  e5 {[%clk 0:01:15]} 33. Qf5 {[%clk 0:00:36]}  Rxd4 {[%clk 0:01:12]} 34. Rxd4 {[%clk 0:00:29]}  Qxd4+ {[%clk 0:01:11]} 35. Kh1 {[%clk 0:00:29]}  Bxa2 {[%clk 0:01:07]} 36. Rc1 {[%clk 0:00:24]}  Qd2 {[%clk 0:00:44]} 37. Ra1 {[%clk 0:00:23]}  b5 {[%clk 0:00:27]} 38. h4 {[%clk 0:00:21]}  b4 {[%clk 0:00:27]} 39. Qe4 {[%clk 0:00:12]}  f5 {[%clk 0:00:20]} 40. Qxe5 {[%clk 0:00:10]}  fxg4 {[%clk 0:00:19]} 41. Re1 {[%clk 0:00:07]}  gxf3 {[%clk 0:00:17]} 42. gxf3 {[%clk 0:00:07]}  Bd5 {[%clk 0:00:16]} 43. Re3 {[%clk 0:00:06]}  Bxf3+ {[%clk 0:00:15]} 44. Rxf3 {[%clk 0:00:03]}  Rxf3 {[%clk 0:00:16]} 45. Qe8+ {[%clk 0:00:02]}  Rf8 {[%clk 0:00:16]} 46. Qe6+ {[%clk 0:00:03]}  Kh8 {[%clk 0:00:16]} 47. Qe7 {[%clk 0:00:04]}  Qd1+ {[%clk 0:00:15]} 48. Kh2 {[%clk 0:00:04]}  Qf3 {[%clk 0:00:15]} 49. h5 {[%clk 0:00:02]}  Qf2+ {[%clk 0:00:15]} 50. Kh1 {[%clk 0:00:02]}  Qf1+ {[%clk 0:00:15]} 51. Kh2 {[%clk 0:00:03]}  Rf2+ {[%clk 0:00:15]} 52. Kg3 {[%clk 0:00:02]}  Qg2+ {[%clk 0:00:15]} 53. Kh4 {[%clk 0:00:02]}  Rf4# {[%clk 0:00:16]} 0-1


[Site "https://www.chess.com"]

[Event "Titled Tuesday Blitz March 01 Early 2022"]
[White "Beerdsen, Thomas"]
[Black "Mikhailov, Viacheslav"]
[WhiteFideId "1030108"]
[BlackFideId "4187369"]
[WhiteElo "2585"]
[BlackElo "2381"]
[Result "0-1"]
[Round "07"]
[TimeControl "180+1"]
[Date "2022.03.01"]
[WhiteClock "0:01:34"]
[BlackClock "0:00:16"]

1. e4 {[%clk 0:02:58]}  d6 {[%clk 0:02:59]} 2. d4 {[%clk 0:02:59]}  Nf6 {[%clk 0:03:00]} 3. Nc3 {[%clk 0:02:59]}  g6 {[%clk 0:03:00]} 4. h4 {[%clk 0:02:57]}  Bg7 {[%clk 0:02:59]} 5. h5 {[%clk 0:02:57]}  O-O {[%clk 0:02:59]} 6. hxg6 {[%clk 0:02:57]}  hxg6 {[%clk 0:03:00]} 7. Bg5 {[%clk 0:02:56]}  c5 {[%clk 0:02:30]} 8. Nf3 {[%clk 0:02:43]}  Bg4 {[%clk 0:02:28]} 9. Qd2 {[%clk 0:02:38]}  Bxf3 {[%clk 0:02:27]} 10. gxf3 {[%clk 0:02:38]}  cxd4 {[%clk 0:02:27]} 11. Ne2 {[%clk 0:02:37]}  Nc6 {[%clk 0:02:19]} 12. Bh6 {[%clk 0:02:33]}  Qa5 {[%clk 0:02:19]} 13. c3 {[%clk 0:02:30]}  dxc3 {[%clk 0:02:15]} 14. Nxc3 {[%clk 0:02:21]}  Nh5 {[%clk 0:01:55]} 15. Bb5 {[%clk 0:02:12]}  Nd4 {[%clk 0:01:50]} 16. O-O-O {[%clk 0:01:55]}  Nxb5 {[%clk 0:01:19]} 17. Bxg7 {[%clk 0:01:50]}  Nxg7 {[%clk 0:00:43]} 18. Qh6 {[%clk 0:01:49]}  f6 {[%clk 0:00:43]} 19. Nxb5 {[%clk 0:01:48]}  Qxb5 {[%clk 0:00:27]} 20. Rdg1 {[%clk 0:01:47]}  Qd3 {[%clk 0:00:17]} 21. Qh7+ {[%clk 0:01:42]}  Kf7 {[%clk 0:00:18]} 22. Qxg6+ {[%clk 0:01:43]}  Ke6 {[%clk 0:00:17]} 23. Qg4+ {[%clk 0:01:41]}  f5 {[%clk 0:00:17]} 24. exf5+ {[%clk 0:01:42]}  Nxf5 {[%clk 0:00:18]} 25. b3 {[%clk 0:01:35]}  Rac8+ {[%clk 0:00:17]} 26. Kb2 {[%clk 0:01:36]}  Rc2+ {[%clk 0:00:18]} 27. Ka3 {[%clk 0:01:36]}  Qa6+ {[%clk 0:00:18]} 28. Kb4 {[%clk 0:01:37]}  Qb6+ {[%clk 0:00:17]} 29. Ka4 {[%clk 0:01:34]}  Rxa2# {[%clk 0:00:16]} 0-1


[Site "https://www.chess.com"]

[Event "Titled Tuesday Blitz March 01 Early 2022"]
[White "Bortnyk, Olexandr"]
[Black "Molina, Roberto Junio Brito"]
[WhiteFideId "14120828"]
[BlackFideId "2109450"]
[WhiteElo "2723"]
[BlackElo "2402"]
[Result "1-0"]
[Round "07"]
[TimeControl "180+1"]
[Date "2022.03.01"]
[WhiteClock "0:00:06"]
[BlackClock "0:00:31"]

1. e4 {[%clk 0:03:00]}  c6 {[%clk 0:02:59]} 2. d4 {[%clk 0:02:59]}  d5 {[%clk 0:03:00]} 3. Nc3 {[%clk 0:02:59]}  dxe4 {[%clk 0:03:00]} 4. Nxe4 {[%clk 0:03:00]}  Nd7 {[%clk 0:03:00]} 5. Nf3 {[%clk 0:02:57]}  Ngf6 {[%clk 0:03:00]} 6. Qd3 {[%clk 0:02:57]}  Nxe4 {[%clk 0:02:59]} 7. Qxe4 {[%clk 0:02:58]}  Nf6 {[%clk 0:02:59]} 8. Qh4 {[%clk 0:02:59]}  Bg4 {[%clk 0:02:59]} 9. Be2 {[%clk 0:02:57]}  e6 {[%clk 0:02:58]} 10. h3 {[%clk 0:02:53]}  Bf5 {[%clk 0:02:56]} 11. c3 {[%clk 0:02:50]}  Be7 {[%clk 0:02:55]} 12. Qg3 {[%clk 0:02:44]}  O-O {[%clk 0:02:51]} 13. Ne5 {[%clk 0:02:41]}  Nd7 {[%clk 0:02:44]} 14. Bf4 {[%clk 0:02:37]}  Nxe5 {[%clk 0:02:43]} 15. Bxe5 {[%clk 0:02:37]}  Bf6 {[%clk 0:02:41]} 16. O-O {[%clk 0:02:27]}  Bxe5 {[%clk 0:02:39]} 17. Qxe5 {[%clk 0:02:28]}  Qd5 {[%clk 0:02:37]} 18. Qe3 {[%clk 0:02:28]}  Rfe8 {[%clk 0:02:32]} 19. f4 {[%clk 0:02:24]}  Rad8 {[%clk 0:02:24]} 20. Bf3 {[%clk 0:02:22]}  Qd7 {[%clk 0:02:23]} 21. a4 {[%clk 0:02:18]}  a6 {[%clk 0:02:18]} 22. Rae1 {[%clk 0:02:15]}  Bc2 {[%clk 0:02:12]} 23. a5 {[%clk 0:02:11]}  Bg6 {[%clk 0:02:08]} 24. b4 {[%clk 0:02:00]}  h6 {[%clk 0:02:05]} 25. Bg4 {[%clk 0:01:54]}  Qd5 {[%clk 0:01:57]} 26. Qg3 {[%clk 0:01:51]}  Qd6 {[%clk 0:01:56]} 27. Re5 {[%clk 0:01:41]}  Re7 {[%clk 0:01:52]} 28. Rfe1 {[%clk 0:01:25]}  Rde8 {[%clk 0:01:51]} 29. R1e3 {[%clk 0:01:15]}  Qd7 {[%clk 0:01:46]} 30. Re2 {[%clk 0:01:04]}  Kf8 {[%clk 0:01:43]} 31. Kh2 {[%clk 0:00:58]}  Qd6 {[%clk 0:01:39]} 32. R2e3 {[%clk 0:00:48]}  Bh7 {[%clk 0:01:32]} 33. Rc5 {[%clk 0:00:42]}  Bg6 {[%clk 0:01:24]} 34. Kg1 {[%clk 0:00:36]}  Qd7 {[%clk 0:01:22]} 35. Qh4 {[%clk 0:00:30]}  Kg8 {[%clk 0:01:19]} 36. Qf2 {[%clk 0:00:25]}  Kf8 {[%clk 0:01:19]} 37. Qg3 {[%clk 0:00:24]}  Qd6 {[%clk 0:01:16]} 38. h4 {[%clk 0:00:22]}  Qd7 {[%clk 0:01:09]} 39. h5 {[%clk 0:00:21]}  Bh7 {[%clk 0:01:09]} 40. Qf2 {[%clk 0:00:12]}  Qd6 {[%clk 0:01:09]} 41. g3 {[%clk 0:00:10]}  Qd7 {[%clk 0:01:04]} 42. Qe1 {[%clk 0:00:10]}  Qd6 {[%clk 0:01:03]} 43. Kf2 {[%clk 0:00:09]}  Bg8 {[%clk 0:01:03]} 44. Qb1 {[%clk 0:00:08]}  f6 {[%clk 0:01:01]} 45. Be2 {[%clk 0:00:08]}  Bf7 {[%clk 0:01:01]} 46. Qh7 {[%clk 0:00:08]}  Bg8 {[%clk 0:00:55]} 47. Qh8 {[%clk 0:00:06]}  Kf7 {[%clk 0:00:52]} 48. Bd3 {[%clk 0:00:06]}  f5 {[%clk 0:00:41]} 49. Bxf5 {[%clk 0:00:06]}  exf5 {[%clk 0:00:42]} 50. Rxf5+ {[%clk 0:00:06]}  Qf6 {[%clk 0:00:42]} 51. Rxf6+ {[%clk 0:00:03]}  gxf6 {[%clk 0:00:38]} 52. Rxe7+ {[%clk 0:00:04]}  Kxe7 {[%clk 0:00:36]} 53. Qxh6 {[%clk 0:00:05]}  Bf7 {[%clk 0:00:33]} 54. g4 {[%clk 0:00:05]}  Rg8 {[%clk 0:00:32]} 55. g5 {[%clk 0:00:05]}  fxg5 {[%clk 0:00:32]} 56. fxg5 {[%clk 0:00:06]}  Be6 {[%clk 0:00:32]} 57. Qf6+ {[%clk 0:00:06]}  Kd7 {[%clk 0:00:31]} 58. h6 {[%clk 0:00:06]}  Ke8 {[%clk 0:00:31]} 59. Qxe6+ {[%clk 0:00:06]} 1-0


[Site "https://www.chess.com"]

[Event "Titled Tuesday Blitz March 01 Early 2022"]
[White "Bryakin, Mikhail"]
[Black "Artemenko, Oleg"]
[WhiteFideId "4165314"]
[BlackFideId "14201798"]
[WhiteElo "2421"]
[BlackElo "2287"]
[Result "1/2-1/2"]
[Round "07"]
[TimeControl "180+1"]
[Date "2022.03.01"]
[WhiteClock "0:01:00"]
[BlackClock "0:00:41"]

1. e4 {[%clk 0:02:59]}  e6 {[%clk 0:02:59]} 2. d4 {[%clk 0:02:57]}  d5 {[%clk 0:03:00]} 3. Bd3 {[%clk 0:02:54]}  dxe4 {[%clk 0:02:59]} 4. Bxe4 {[%clk 0:02:55]}  Nf6 {[%clk 0:03:00]} 5. Bf3 {[%clk 0:02:55]}  c5 {[%clk 0:03:00]} 6. Ne2 {[%clk 0:02:53]}  Nc6 {[%clk 0:02:59]} 7. Be3 {[%clk 0:02:45]}  Nd5 {[%clk 0:02:38]} 8. Bxd5 {[%clk 0:02:45]}  Qxd5 {[%clk 0:02:37]} 9. Nf4 {[%clk 0:02:46]}  Qf5 {[%clk 0:02:27]} 10. dxc5 {[%clk 0:02:38]}  Bxc5 {[%clk 0:02:23]} 11. Bxc5 {[%clk 0:02:38]}  Qxc5 {[%clk 0:02:19]} 12. Nd3 {[%clk 0:02:38]}  Qa5+ {[%clk 0:02:14]} 13. Qd2 {[%clk 0:02:36]}  Qxd2+ {[%clk 0:02:13]} 14. Nxd2 {[%clk 0:02:37]}  b6 {[%clk 0:02:14]} 15. f3 {[%clk 0:02:34]}  Bb7 {[%clk 0:02:13]} 16. Kf2 {[%clk 0:02:34]}  O-O-O {[%clk 0:02:12]} 17. Nb3 {[%clk 0:02:31]}  Ba6 {[%clk 0:02:11]} 18. Nf4 {[%clk 0:02:27]}  e5 {[%clk 0:02:08]} 19. Ne2 {[%clk 0:02:27]}  Nb4 {[%clk 0:02:06]} 20. a3 {[%clk 0:02:25]}  Nd5 {[%clk 0:02:03]} 21. Rad1 {[%clk 0:02:19]}  f6 {[%clk 0:01:59]} 22. Rd2 {[%clk 0:02:16]}  Bxe2 {[%clk 0:01:59]} 23. Rxe2 {[%clk 0:02:16]}  Nf4 {[%clk 0:01:59]} 24. Rd2 {[%clk 0:02:14]}  Rxd2+ {[%clk 0:01:59]} 25. Nxd2 {[%clk 0:02:15]}  Rd8 {[%clk 0:01:59]} 26. Nb1 {[%clk 0:02:15]}  Kc7 {[%clk 0:01:58]} 27. g3 {[%clk 0:02:15]}  Ne6 {[%clk 0:01:58]} 28. Ke3 {[%clk 0:02:11]}  Nd4 {[%clk 0:01:57]} 29. Rc1 {[%clk 0:02:12]}  Nf5+ {[%clk 0:01:56]} 30. Ke2 {[%clk 0:02:11]}  Kc6 {[%clk 0:01:54]} 31. Nd2 {[%clk 0:02:08]}  a5 {[%clk 0:01:53]} 32. Ne4 {[%clk 0:02:07]}  b5 {[%clk 0:01:51]} 33. c3 {[%clk 0:02:02]}  Nd6 {[%clk 0:01:36]} 34. Rd1 {[%clk 0:01:55]}  Rd7 {[%clk 0:01:37]} 35. b3 {[%clk 0:01:48]}  Nxe4 {[%clk 0:01:31]} 36. fxe4 {[%clk 0:01:49]}  Rxd1 {[%clk 0:01:29]} 37. Kxd1 {[%clk 0:01:48]}  Kc5 {[%clk 0:01:21]} 38. Kd2 {[%clk 0:01:45]}  a4 {[%clk 0:01:20]} 39. b4+ {[%clk 0:01:37]}  Kc4 {[%clk 0:01:20]} 40. Kc2 {[%clk 0:01:34]}  h5 {[%clk 0:01:21]} 41. h3 {[%clk 0:01:25]}  g6 {[%clk 0:01:20]} 42. g4 {[%clk 0:01:23]}  hxg4 {[%clk 0:01:21]} 43. hxg4 {[%clk 0:01:24]}  g5 {[%clk 0:01:21]} 44. Kd2 {[%clk 0:01:20]}  Kb3 {[%clk 0:01:22]} 45. Kd3 {[%clk 0:01:20]}  Kxa3 {[%clk 0:01:20]} 46. Kc2 {[%clk 0:01:21]}  Ka2 {[%clk 0:00:58]} 47. c4 {[%clk 0:01:22]}  f5 {[%clk 0:00:47]} 48. exf5 {[%clk 0:01:10]}  e4 {[%clk 0:00:47]} 49. cxb5 {[%clk 0:01:10]}  e3 {[%clk 0:00:47]} 50. b6 {[%clk 0:01:10]}  e2 {[%clk 0:00:48]} 51. Kd2 {[%clk 0:01:11]}  a3 {[%clk 0:00:48]} 52. b7 {[%clk 0:01:11]}  Kb3 {[%clk 0:00:48]} 53. b8=Q {[%clk 0:01:12]}  a2 {[%clk 0:00:49]} 54. Qa7 {[%clk 0:01:11]}  Kb2 {[%clk 0:00:45]} 55. Kxe2 {[%clk 0:01:10]}  Kc1 {[%clk 0:00:44]} 56. b5 {[%clk 0:00:59]}  Kb1 {[%clk 0:00:41]} 57. Qxa2+ {[%clk 0:00:59]}  Kc1 {[%clk 0:00:41]} 58. b6 {[%clk 0:01:00]} 1/2-1/2


[Site "https://www.chess.com"]